bitfinex-derivatives/quotes_ETHF0:USTF0_20250830
["timestamp","ask_amount","ask_price","bid_price","bid_amount"]
[1756549138885,0.1926,4407.4,4407.3,3.5664]
[1756549139086,0.991374,4407.4,4407.3,3.5664]
[1756549139285,0.798774,4407.4,4407.3,3.5664]
[1756549140088,0.991374,4407.4,4407.3,3.5664]
[1756549140389,0.991374,4407.4,4407.3,3.2078]
[1756549141297,0.991374,4407.4,4407.3,3.5664]
[1756549142192,0.710974,4407.4,4406.7,3.3629]
[1756549142389,0.473,4406.8,4406.7,3.2078]
[1756549142794,1.1247769,4406.8,4406.2,3.2078]
[1756549143098,0.473,4406.3,4406.2,3.2078]
[1756549143295,1.41625962,4406.3,4406.2,3.2078]
[1756549143497,1.93477239,4406.3,4406.2,3.2078]
[1756549144298,1.41625962,4406.3,4406.2,3.2078]
[1756549145096,1.41625962,4406.3,4405.7,3.3629]
[1756549145302,1.00295779,4405.9,4405.8,0.3586]
[1756549145507,1.00295779,4405.9,4405.8,0.2035]
[1756549145702,0.473,4405.9,4405.8,0.2035]
[1756549146701,0.473,4405.8,4405.7,3.2078]
[1756549147100,1.41625962,4405.8,4405.7,3.2078]
[1756549147295,0.2862,4405.7,4405.1,3.2078]
[1756549147501,0.4873,4405.2,4405.1,3.4004]
[1756549147798,0.4873,4405.2,4405.1,3.5563]
[1756549148301,0.4873,4405.2,4405.1,3.2078]
[1756549149002,0.4873,4405.2,4405.1,3.4004]
[1756549149202,0.4873,4405.2,4405.1,3.5563]
[1756549151298,0.7193,4405.9,4405.8,0.1926]
[1756549151497,1.23546496,4405.9,4405.8,0.3485]
[1756549151801,0.4873,4405.3,4405.2,0.3485]
[1756549152198,0.90060183,4405.3,4405.2,0.3485]
[1756549154199,0.4873,4405.2,4405.1,3.2078]
[1756549154498,0.4873,4405.2,4405.1,0.3485]
[1756549154499,1.43055962,4405.2,4405.1,0.3485]
[1756549154699,0.4873,4405.2,4405.1,0.3485]
[1756549165504,0.4873,4405.2,4405.1,3.5563]
[1756549170512,0.4873,4405.2,4405.1,3.4004]
[1756549170713,0.4873,4405.2,4405.1,3.2078]
[1756549171912,0.4873,4405.2,4405.1,3.3634]
[1756549172210,0.4873,4405.2,4404.6,3.2078]
[1756549172211,0.4873,4404.7,4404.6,3.2078]
[1756549172608,1.00665014,4404.7,4404.6,3.2078]
[1756549174716,1.00665014,4404.7,4404.6,3.556]
[1756549176110,0.51935014,4404.7,4404.6,3.556]
[1756549176426,0.5182,4405.5,4405.4,0.3482]
[1756549176715,1.03812707,4405.5,4405.4,0.3482]
[1756549176904,2.18248669,4405.5,4405.4,0.3482]
[1756549177108,1.6525289,4405.5,4405.4,0.3482]
[1756549177305,1.2194289,4405.5,4405.4,0.3482]
[1756549177508,0.9332289,4405.5,4405.4,0.3482]
[1756549178511,0.51992707,4405.5,4405.4,0.3482]
[1756549179014,0.51992707,4405.5,4405.4,0.5802]
[1756549179213,0.1423,4405.8,4405.4,4.65158999]
[1756549179415,0.1423,4405.8,4405.7,3.2078]
[1756549179614,0.1423,4405.8,4405.7,3.4398]
[1756549179814,0.1423,4405.8,4405.7,3.66678]
[1756549180115,3.676,4406.8,4405.7,3.66678]
[1756549180319,4.08930183,4406.8,4406.2,3.2078]
[1756549180617,0.282,4406.6,4406.3,0.232]
[1756549180813,3.4898,4406.8,4406.3,0.232]
[1756549181111,0.4682,4407.2,4406.3,0.232]
[1756549181313,0.4682,4407.0,4406.3,0.232]
[1756549181813,0.1862,4406.3,4406.2,3.2078]
[1756549182018,0.4682,4406.3,4406.2,3.2078]
[1756549183218,0.282,4406.5,4406.2,3.2078]
[1756549183512,0.282,4406.5,4406.3,0.232]
[1756549183716,0.1862,4406.5,4406.3,0.232]
[1756549184015,0.282,4406.4,4406.3,0.232]
[1756549184606,0.4682,4406.4,4406.3,0.232]
[1756549184817,0.4682,4406.3,4406.2,3.4398]
[1756549185618,0.99815779,4406.3,4406.2,3.2078]
[1756549186420,1.41145962,4406.3,4406.2,3.2078]
[1756549192724,0.1373,4406.6,4406.2,7.2078]
[1756549193025,0.1373,4406.6,4406.3,0.232]
[1756549195629,0.1373,4406.6,4406.3,5.54]
[1756549200534,0.4193,4406.6,4406.3,5.54]
[1756549201027,0.1373,4406.6,4406.3,5.308]
[1756549201234,0.4682,4406.3,4406.2,3.2078]
[1756549201427,0.99815779,4406.3,4406.2,3.2078]
[1756549204840,1.41145962,4406.3,4406.2,3.2078]
[1756549206845,1.9316402,4406.3,4406.2,3.2078]
[1756549209250,0.4841,4405.6,4405.5,3.2078]
[1756549209445,1.00428058,4405.6,4405.5,3.2078]
[1756549209645,1.9475402,4405.6,4405.5,3.2078]
[1756549210248,1.42735962,4405.6,4405.5,3.2078]
[1756549215442,1.94754662,4405.6,4405.5,3.2078]
[1756549219449,1.94719603,4405.6,4405.5,3.2078]
[1756549219843,5.94719603,4405.6,4405.5,3.2078]
[1756549220043,0.4841,4404.8,4404.7,2.79449817]
[1756549220255,1.01405779,4404.8,4404.7,2.79669817]
[1756549220443,1.01405779,4404.8,4404.7,2.79809817]
[1756549221855,0.52995779,4404.8,4404.7,2.79809817]
[1756549222047,1.01405779,4404.8,4404.7,2.79809817]
[1756549222653,3.2078,4405.7,4404.7,2.79809817]
[1756549222855,1.00363707,4405.6,4405.5,0.0036]
[1756549223252,1.53359486,4405.6,4405.5,0.0036]
[1756549224655,1.53359486,4405.6,4405.2,0.0014]
[1756549224859,1.01405779,4405.4,4405.3,0.0036]
[1756549225360,0.4841,4405.4,4405.3,0.0036]
[1756549226454,0.4239,4405.9,4405.8,0.0022]
[1756549226656,1.23475566,4405.9,4405.8,0.0036]
[1756549227350,0.1929,4405.4,4405.3,0.0036]
[1756549227550,0.4841,4404.8,4404.7,3.21]
[1756549228461,0.4841,4404.8,4404.7,3.2114]
[1756549230249,0.1929,4405.2,4405.1,0.0022]
[1756549230461,0.1929,4405.2,4405.1,0.0036]
[1756549230462,0.4841,4405.2,4405.1,0.0036]
[1756549231553,0.4841,4405.2,4404.7,3.2092]
[1756549231554,0.1929,4405.2,4404.7,3.2092]
[1756549231759,0.4841,4404.8,4404.7,3.2078]
[1756549231961,1.01405779,4404.8,4404.7,3.21]
[1756549232157,1.01405779,4404.8,4404.7,3.2114]
[1756549232755,0.231,4405.5,4404.7,3.2114]
[1756549232756,0.2912,4405.4,4404.8,0.0014]
[1756549233057,0.82115779,4405.0,4404.9,0.0036]
[1756549233450,0.2912,4405.0,4404.9,0.0036]
[1756549234556,0.4841,4405.0,4404.9,0.0036]
[1756549235963,1.01405779,4405.0,4404.9,0.0036]
[1756549236555,1.01405779,4405.0,4404.9,0.0022]
[1756549236760,0.72285779,4405.0,4404.7,3.2078]
[1756549236956,0.1929,4404.8,4404.7,3.2114]
[1756549237156,0.4856,4404.8,4404.7,3.2114]
[1756549237555,0.4856,4404.8,4404.7,3.2078]
[1756549238255,0.4856,4404.8,4403.3,3.1265692]
[1756549238256,9.05278974,4404.8,4403.3,3.1265692]
[1756549238465,3.2078,4403.4,4401.9,0.2824]
[1756549238667,3.2078,4402.6,4401.9,0.4838]
[1756549238859,0.73101357,4402.5,4402.4,0.2014]
[1756549239059,0.96601357,4402.5,4402.4,0.4838]
[1756549240467,1.00945798,4402.5,4402.4,0.4838]
[1756549241261,0.99909495,4402.5,4402.4,0.4838]
[1756549242062,0.76409495,4402.5,4402.4,0.4838]
[1756549244165,0.7637819,4402.5,4402.4,0.4838]
[1756549244368,0.24137407,4402.5,4402.4,0.4838]
[1756549244854,0.87208634,4402.5,4402.4,0.4838]
[1756549245355,0.87190384,4402.5,4402.4,0.4838]
[1756549248370,0.24137407,4402.5,4402.4,0.4838]
[1756549251167,3.4418,4402.7,4402.4,0.4838]
[1756549251367,0.256517,4402.6,4402.4,0.2014]
[1756549251569,0.256517,4402.5,4402.4,0.4838]
[1756549252071,0.25651223,4402.5,4402.4,0.4838]
[1756549253378,0.25651223,4402.5,4402.4,0.26223902]
[1756549253675,0.44251223,4402.5,4402.4,0.2014]
[1756549254873,0.44251157,4402.5,4402.4,0.2014]
[1756549255572,0.66401157,4402.5,4402.4,0.4838]
[1756549256071,0.2215,4402.4,4402.1,0.2824]
[1756549256369,0.4075,4402.2,4402.1,0.2824]
[1756549256565,0.66401157,4402.2,4402.1,0.2824]
[1756549258174,0.66401157,4402.2,4401.4,5.542]
[1756549258375,0.25651157,4402.1,4401.4,5.542]
[1756549258577,0.44251157,4402.0,4401.9,0.2014]
[1756549259179,0.73521157,4402.0,4401.9,0.2014]
[1756549259884,0.186,4401.5,4401.4,5.5094]
[1756549260175,0.73521157,4401.5,4401.4,5.7918]
[1756549261380,0.73555348,4401.5,4401.4,5.7918]
[1756549262280,0.25685348,4401.5,4401.4,5.7918]
[1756549262475,0.91576476,4401.5,4401.4,5.7918]
[1756549262878,0.25685348,4401.5,4401.4,5.7918]
[1756549263077,0.73555348,4401.5,4401.4,5.7918]
[1756549263276,1.3944694,4401.5,4401.4,5.5904]
[1756549263478,1.3944694,4401.5,4401.4,5.57020458]
[1756549263771,1.3944694,4401.5,4401.4,0.4838]
[1756549264173,1.3944694,4401.5,4401.4,0.18831705]
[1756549264380,1.39482979,4401.5,4401.4,0.18831705]
[1756549265681,1.10212979,4401.5,4401.4,0.18831705]
[1756549266078,1.39482979,4401.5,4401.4,0.18831705]
[1756549266279,1.39482979,4401.5,4401.4,0.47071705]
[1756549267382,2.62057411,4401.5,4401.4,0.30024044]
[1756549267976,2.60970806,4401.5,4401.4,0.30024044]
[1756549268169,1.38396374,4401.5,4401.4,0.30024044]
[1756549268376,1.47050058,4401.5,4401.4,4.52744043]
[1756549268579,0.90526374,4401.5,4401.4,4.52744043]
[1756549268877,0.90526374,4401.5,4401.4,4.30024044]
[1756549269078,0.65891592,4401.5,4401.4,4.30024044]
[1756549269279,0.65891592,4401.7,4401.4,4.28244044]
[1756549269480,0.65891592,4401.7,4401.4,0.28244044]
[1756549270074,0.65891592,4401.7,4401.6,3.6606]
[1756549270276,0.65891592,4401.7,4401.6,3.5981564]
[1756549270979,0.65891592,4401.7,4401.6,7.8253464]
[1756549271180,0.1135,4401.9,4401.8,0.1882]
[1756549271477,0.1135,4401.9,4401.8,0.4528]
[1756549271980,0.77558942,4401.9,4401.8,0.4528]
[1756549272177,0.66208942,4401.9,4401.8,0.4528]
[1756549272372,0.66208942,4401.9,4401.8,0.6858]
[1756549272675,0.4804,4402.0,4401.9,0.4528]
[1756549272877,1.14249548,4402.0,4401.9,0.6858]
[1756549273477,1.14249548,4402.0,4401.9,0.46423193]
[1756549273783,0.2009,4401.7,4401.6,2.9123564]
[1756549274083,1.14249548,4401.7,4401.6,3.2141564]
[1756549274278,0.94159548,4401.7,4401.6,3.2141564]
[1756549274882,0.66209548,4401.7,4401.6,3.2141564]
[1756549275180,0.2795,4401.7,4401.6,3.2141564]
[1756549275373,0.94159548,4401.7,4401.6,3.2571564]
[1756549275777,1.14249548,4401.7,4401.6,3.2571564]
[1756549276188,1.14249548,4401.7,4401.6,0.3448]
[1756549277983,1.14249548,4401.7,4401.6,3.5526]
[1756549278881,0.94159548,4401.7,4401.6,3.5526]
[1756549279077,1.14249548,4401.7,4401.6,3.25715776]
[1756549279282,0.86299548,4401.7,4401.6,0.233]
[1756549279485,1.14249548,4401.7,4401.6,0.233]
[1756549279685,2.52499548,4401.7,4401.6,0.233]
[1756549283491,2.52499548,4401.7,4401.6,0.01141828]
[1756549285687,2.04459548,4401.7,4401.6,0.01141828]
[1756549286290,1.3825,4401.7,4401.6,0.01141828]
[1756549288487,1.662,4401.7,4401.6,0.01141828]
[1756549289192,1.8629,4401.7,4401.6,0.01141828]
[1756549290696,1.8629,4401.7,4401.6,5.09782286]
[1756549290993,1.8629,4401.7,4401.6,5.08640458]
[1756549291297,2.52518199,4401.7,4401.6,5.31940458]
[1756549296903,2.52518199,4401.7,4401.6,5.31840458]
[1756549297306,2.52518199,4401.7,4401.6,5.09682509]
[1756549298404,2.72754355,4401.7,4401.6,5.09682509]
[1756549298606,2.52518199,4401.7,4401.6,5.09682509]
[1756549298805,2.72754281,4401.7,4401.6,4.86482509]
[1756549299409,6.44804281,4401.7,4401.3,0.232]
[1756549299607,0.5034,4401.4,4401.3,0.232]
[1756549299803,0.70576082,4401.4,4401.3,0.232]
[1756549300005,1.36804281,4401.4,4401.3,0.232]
[1756549300508,1.06254281,4401.4,4400.8,3.2078]
[1756549300708,0.5034,4401.0,4400.9,0.232]
[1756549300904,1.36804281,4401.0,4400.9,0.232]
[1756549301103,0.3055,4400.9,4400.8,3.2078]
[1756549301310,1.36804281,4400.9,4400.8,3.4398]
[1756549301511,1.36798976,4400.9,4400.8,3.4398]
[1756549302404,1.16568199,4400.9,4400.8,3.4398]
[1756549302606,1.36794568,4400.9,4400.8,3.4398]
[1756549302809,1.36794568,4400.9,4400.8,3.2078]
[1756549303408,0.1979,4400.2,4400.1,3.2078]
[1756549303604,0.70566369,4400.2,4400.1,3.4398]
[1756549303809,1.36791381,4400.2,4400.1,3.4398]
[1756549305009,1.36791381,4400.2,4400.1,3.2078]
[1756549307505,1.36791381,4400.2,4400.1,2.98612471]
[1756549313013,0.21677025,4400.2,4400.1,2.98612471]
[1756549313218,0.52227025,4400.2,4400.1,3.21812471]
[1756549314617,0.2167154,4400.2,4400.1,3.21812471]
[1756549316322,1.8037154,4400.2,4400.1,3.21812471]
[1756549316821,2.1092154,4400.2,4400.1,3.21812471]
[1756549317125,2.3071154,4400.2,4400.1,3.21812471]
[1756549320322,2.1092154,4400.2,4400.1,3.21812471]
[1756549320523,1.8037154,4400.2,4400.1,3.21812471]
[1756549321122,2.3071154,4400.2,4400.1,2.98612471]
[1756549321423,2.3071154,4400.2,4400.1,3.21812471]
[1756549322222,2.96737501,4400.2,4400.1,3.21812471]
[1756549324029,2.75065961,4400.2,4400.1,3.21812471]
[1756549324330,2.96766154,4400.2,4400.1,3.21812471]
[1756549325725,2.76976154,4400.2,4400.1,3.21812471]
[1756549325929,1.80400193,4400.2,4400.1,3.21812471]
[1756549327229,2.46552373,4400.2,4400.1,3.21812471]
[1756549327922,2.95512373,4400.2,4400.1,2.98612471]
[1756549328124,2.95512373,4400.2,4400.1,3.21812471]
[1756549330432,2.46552373,4400.2,4400.1,3.21812471]
[1756549330822,2.75632373,4400.2,4400.1,3.21812471]
[1756549333836,2.46552373,4400.2,4400.1,3.21812471]
[1756549334636,2.2485218,4400.2,4400.1,3.21812471]
[1756549334830,2.45618935,4400.2,4400.1,3.21812471]
[1756549335131,2.45618935,4400.2,4400.1,8.0829498]
[1756549337634,1.79466755,4400.2,4400.1,8.0829498]
[1756549340825,1.79466755,4400.2,4400.1,3.21812471]
[1756549342035,1.79466755,4400.2,4400.1,3.4398]
[1756549342736,1.587,4400.2,4400.1,3.4398]
[1756549343439,1.22415276,4401.9,4400.2,0.1225]
[1756549343737,0.1988,4401.3,4401.2,3.2078]
[1756549343925,0.1988,4401.3,4401.2,3.4398]
[1756549344126,0.86123564,4401.3,4401.2,3.4398]
[1756549344630,0.86123564,4401.3,4401.2,3.5623]
[1756549344937,4.86123564,4401.3,4400.9,0.232]
[1756549345233,0.1988,4401.0,4400.9,0.232]
[1756549345428,0.1988,4401.0,4400.4,3.2078]
[1756549345429,1.15203564,4401.0,4400.4,3.2078]
[1756549345627,0.1988,4400.6,4400.5,0.232]
[1756549345830,1.15203564,4400.6,4400.5,0.232]
[1756549348038,0.4896,4400.5,4400.4,3.2078]
[1756549348238,1.15203564,4400.5,4400.4,3.4398]
[1756549351635,1.15203564,4400.5,4400.4,3.2078]
[1756549351934,1.15203564,4400.5,4400.4,3.4398]
[1756549353534,0.95323564,4400.5,4400.4,3.7577]
[1756549353839,1.15203564,4400.5,4400.4,3.7577]
[1756549354132,1.15203564,4400.5,4400.4,3.6352]
[1756549356035,1.15203564,4400.5,4400.4,3.4032]
[1756549356235,1.15203564,4400.5,4400.4,3.7577]
[1756549359643,1.15203564,4400.5,4400.4,3.5257]
[1756549359839,1.15203564,4400.5,4400.4,3.7577]
[1756549360040,1.15203564,4400.5,4400.4,3.53605271]
[1756549360243,1.15203564,4400.5,4400.4,3.30405271]
[1756549360444,0.86123564,4400.5,4399.9,3.2078]
[1756549360645,0.4834,4400.0,4399.9,3.2078]
[1756549360843,1.14583564,4400.0,4399.9,3.2078]
[1756549362750,1.14583564,4400.0,4399.9,3.403]
[1756549362942,1.14583564,4400.0,4399.9,3.525]
[1756549364548,1.14583564,4400.0,4399.9,3.4398]
[1756549368452,1.14583564,4400.0,4399.9,3.5618]
[1756549369151,1.14583564,4400.0,4399.9,3.2078]
[1756549370656,1.14583564,4400.0,4399.9,3.525]
[1756549374056,1.14583564,4400.0,4399.9,3.30332506]
[1756549377665,1.14583564,4400.0,4399.9,3.18132506]
[1756549378658,1.14583564,4400.0,4399.9,3.30332506]
[1756549384163,1.14583564,4400.0,4399.9,3.08164684]
[1756549387464,0.94413564,4400.0,4399.9,3.08164684]
[1756549388767,1.14463564,4400.0,4399.9,3.08164684]
[1756549389967,0.66243564,4400.0,4399.9,3.08164684]
[1756549390272,1.8865884,4400.0,4399.9,3.08164684]
[1756549390569,1.52075276,4400.0,4399.9,3.08164684]
[1756549390769,2.1831884,4400.0,4399.9,3.08164684]
[1756549392769,0.66243564,4400.0,4399.9,7.30892684]
[1756549393466,0.54043564,4400.0,4399.9,12.17375193]
[1756549393866,1.4977,4400.2,4399.9,12.17375193]
[1756549394064,1.4977,4400.2,4400.0,0.45927]
[1756549394260,1.4977,4400.2,4400.0,4.45927]
[1756549394461,1.4977,4400.2,4400.1,0.22727]
[1756549394862,1.4977,4400.2,4400.1,0.232]
[1756549399873,0.2966,4401.7,4400.1,9.32408509]
[1756549400173,1.22415276,4402.0,4400.1,9.32408509]
[1756549400174,0.4971,4401.3,4401.2,3.2078]
[1756549400472,0.4971,4401.3,4401.2,8.30362509]
[1756549403671,0.2966,4402.2,4401.2,8.30362509]
[1756549403875,1.22415276,4402.8,4401.8,3.2078]
[1756549404074,0.4971,4402.7,4401.9,0.231]
[1756549405477,0.2966,4402.5,4401.9,0.231]
[1756549405673,0.2966,4402.3,4401.9,0.231]
[1756549405976,0.4971,4402.3,4401.9,0.231]
[1756549406576,0.4971,4401.9,4401.8,3.2078]
[1756549406772,0.4971,4401.9,4401.8,3.4388]
[1756549414392,0.4971,4401.9,4401.8,3.2078]
[1756549414588,0.4971,4401.9,4401.8,3.4388]
[1756549415691,0.4971,4401.9,4401.8,3.2078]
[1756549416091,0.4971,4401.9,4401.8,3.4388]
[1756549419497,1.22415276,4403.0,4401.8,3.4388]
[1756549419688,0.64521383,4402.9,4401.8,3.4388]
[1756549419992,0.2992,4402.7,4401.8,3.4388]
[1756549420293,0.2992,4402.5,4401.8,3.4388]
[1756549420491,0.2992,4402.2,4401.8,3.4388]
[1756549420687,0.1876,4402.1,4401.9,0.231]
[1756549420888,0.4868,4402.0,4401.9,0.231]
[1756549422294,1.13311358,4402.0,4401.9,0.231]
[1756549431993,0.83391358,4402.0,4401.9,0.231]
[1756549432196,1.13311358,4402.0,4401.9,0.231]
[1756549433394,1.13311358,4402.0,4401.8,3.2078]
[1756549433599,0.83391358,4401.9,4401.3,3.2078]
[1756549433900,0.4868,4401.4,4401.3,3.2078]
[1756549434088,0.4868,4401.4,4401.3,3.4388]
[1756549434289,1.13311358,4401.4,4401.3,3.4388]
[1756549439013,1.13311358,4401.4,4401.3,8.30362509]
[1756549440405,1.13311358,4401.4,4401.3,8.07262509]
[1756549440601,1.13311358,4401.4,4401.3,8.30362509]
[1756549441705,1.13311358,4401.4,4401.3,8.07262509]
[1756549441906,1.13311358,4401.4,4401.3,8.30362509]
[1756549444805,1.13311358,4401.4,4401.3,3.4388]
[1756549446411,1.13311358,4401.4,4401.3,3.2078]
[1756549446719,1.13311358,4401.4,4401.3,3.4388]
[1756549448112,0.94551358,4401.4,4401.3,3.4388]
[1756549448506,0.64631358,4401.4,4401.3,3.4388]
[1756549448706,0.4744,4402.3,4401.3,7.4388]
[1756549448908,0.64790869,4402.2,4401.8,3.2078]
[1756549449110,0.64790869,4402.1,4401.9,0.231]
[1756549449309,0.64790869,4402.0,4401.9,0.231]
[1756549449902,0.93350869,4402.0,4401.9,0.231]
[1756549450613,1.12230869,4402.0,4401.9,0.231]
[1756549451717,1.12230869,4402.0,4401.8,3.2078]
[1756549452013,0.4744,4402.0,4401.9,0.231]
[1756549452414,1.12227953,4402.0,4401.9,0.231]
[1756549452914,1.12227953,4402.0,4401.8,3.2078]
[1756549453115,1.12227953,4401.9,4401.8,3.2078]
[1756549453315,1.12227953,4401.9,4401.8,3.4388]
[1756549455327,1.12227953,4401.9,4401.8,3.2078]
[1756549455521,1.12227953,4401.9,4401.8,0.231]
[1756549459531,0.83667953,4401.9,4401.3,3.2078]
[1756549459731,0.64792271,4401.8,4401.4,0.231]
[1756549459926,0.1888,4401.5,4401.3,3.2078]
[1756549460133,0.83672271,4401.4,4401.3,3.2078]
[1756549460329,1.12232271,4401.4,4401.3,3.4388]
[1756549460534,1.12232271,4401.4,4401.3,3.2078]
[1756549460834,1.12232271,4401.4,4401.3,3.4388]
[1756549462424,0.64792271,4401.4,4401.3,3.4388]
[1756549465329,0.93352271,4401.4,4401.3,3.4388]
[1756549469632,0.64792271,4401.4,4401.3,3.4388]
[1756549469839,0.1216,4401.7,4401.3,3.4388]
[1756549470138,0.64783623,4401.6,4401.3,3.4388]
[1756549470339,0.1216,4401.7,4401.3,3.4388]
[1756549470736,0.1216,4401.7,4401.4,40.8]
[1756549470936,0.1216,4401.7,4401.5,0.231]
[1756549471643,0.1216,4401.7,4401.6,0.231]
[1756549472042,0.4744,4402.1,4401.6,0.231]
[1756549472243,0.2856,4401.9,4401.6,0.231]
[1756549472444,0.2856,4401.9,4401.8,3.2078]
[1756549472641,1.12192764,4401.9,4401.8,3.2078]
[1756549472839,1.12192764,4401.9,4401.8,3.4388]
[1756549473847,0.93312764,4401.9,4401.8,3.4388]
[1756549474045,1.12192764,4401.9,4401.8,3.4388]
[1756549476241,0.64752764,4401.9,4401.8,3.4388]
[1756549476944,0.93312764,4401.9,4401.8,3.4388]
[1756549477948,1.12192764,4401.9,4401.8,3.4398]
[1756549481351,0.64752764,4401.9,4401.8,3.4398]
[1756549481644,0.1256,4402.2,4401.8,3.4398]
[1756549481843,0.4257,4402.2,4401.8,3.4398]
[1756549482042,0.3001,4402.1,4401.8,3.4398]
[1756549485153,1.22415276,4403.3,4401.8,3.4398]
[1756549485354,0.5045,4402.6,4402.5,3.2078]
[1756549485653,0.5045,4402.6,4402.5,3.4388]
[1756549485855,1.15148367,4402.6,4402.5,3.4388]
[1756549490759,1.15148367,4402.6,4402.5,0.231]
[1756549491156,0.5045,4401.9,4401.8,3.2078]
[1756549491350,0.85121436,4401.9,4401.8,0.231]
[1756549491555,0.85121436,4401.9,4401.8,3.4388]
[1756549491556,1.15131436,4401.9,4401.8,3.4388]
[1756549492362,1.15131436,4401.9,4401.8,3.2078]
[1756549492563,1.15131436,4401.9,4401.8,3.4388]
[1756549492857,0.2044,4401.4,4401.3,3.2078]
[1756549493155,0.5045,4401.4,4401.3,3.4398]
[1756549496662,0.5045,4401.4,4401.3,3.2088]
[1756549497060,0.5045,4401.4,4401.3,3.4398]
[1756549500463,0.5045,4401.4,4401.3,3.2088]
[1756549500664,0.5045,4401.4,4401.3,3.4398]
[1756549501365,1.1513612,4401.4,4401.3,3.4398]
[1756549502058,1.1513612,4401.4,4401.3,3.2088]
[1756549502259,1.1513612,4401.4,4401.3,3.4398]
[1756549504367,1.1513612,4401.4,4401.3,3.2088]
[1756549504564,1.1513612,4401.4,4401.3,3.4398]
[1756549505766,1.1513612,4401.4,4401.3,3.2078]
[1756549505967,1.1513612,4401.4,4401.3,3.4398]
[1756549512376,1.1513612,4401.4,4401.3,3.2078]
[1756549512678,1.1513612,4401.4,4401.3,3.4388]
[1756549513182,4.8740612,4401.4,4400.7,3.2078]
[1756549513373,0.1297,4401.6,4400.7,3.2078]
[1756549513374,0.4914,4400.8,4400.7,3.2078]
[1756549513675,0.4914,4400.8,4400.7,3.4388]
[1756549513877,1.1382612,4400.8,4400.7,3.2078]
[1756549514675,1.1382612,4400.8,4400.1,32.726]
[1756549514676,0.293,4400.7,4400.1,32.726]
[1756549514980,0.4914,4400.3,4400.2,0.231]
[1756549516280,0.1984,4400.3,4400.2,0.231]
[1756549516782,0.4914,4400.3,4400.2,0.231]
[1756549517582,0.1984,4400.3,4400.2,0.231]
[1756549518182,0.4914,4400.3,4400.2,0.231]
[1756549520078,0.1377,4400.5,4400.0,3.2078]
[1756549520079,0.1984,4400.1,4400.0,3.2078]
[1756549520278,0.4914,4400.1,4400.0,3.4388]
[1756549520680,0.4914,4400.1,4400.0,3.2078]
[1756549520982,0.4914,4400.1,4400.0,3.4388]
[1756549522685,0.4914,4400.1,4400.0,3.2078]
[1756549522887,0.4914,4400.1,4400.0,3.4388]
[1756549524382,0.4914,4400.1,4400.0,3.2078]
[1756549524682,0.4914,4400.1,4399.3,4.86482509]
[1756549524683,0.4914,4400.1,4399.9,0.231]
[1756549524986,1.13877048,4400.0,4399.9,0.231]
[1756549525281,0.293,4399.9,4399.4,3.2078]
[1756549525487,0.4914,4399.5,4399.4,3.2078]
[1756549525689,0.4914,4399.5,4399.4,3.4388]
[1756549529289,0.1377,4400.5,4399.4,3.4388]
[1756549529488,0.87405256,4400.4,4399.4,3.4388]
[1756549529793,0.293,4400.2,4399.4,3.4388]
[1756549529980,0.293,4399.9,4399.4,3.4388]
[1756549530186,0.293,4399.7,4399.4,3.4388]
[1756549530485,0.293,4400.3,4399.4,3.4388]
[1756549530687,0.293,4400.3,4400.2,3.2078]
[1756549530890,0.293,4400.4,4400.2,3.4388]
[1756549531091,0.64665229,4400.3,4400.2,3.4388]
[1756549531586,0.293,4400.4,4400.2,3.4388]
[1756549531587,0.1984,4400.4,4400.2,3.4388]
[1756549531790,0.293,4400.3,4400.2,3.4388]
[1756549531991,0.4914,4400.3,4400.2,3.4388]
[1756549532290,0.293,4400.3,4400.2,3.4388]
[1756549533289,0.1377,4400.5,4400.2,3.4388]
[1756549538697,0.3072,4400.4,4400.2,3.2078]
[1756549538896,0.3072,4400.4,4400.3,0.231]
[1756549539686,0.3072,4400.4,4400.3,5.09582509]
[1756549540193,0.5112,4400.4,4400.3,4.86482509]
[1756549540398,0.5112,4400.4,4400.3,5.09582509]
[1756549540591,1.22415276,4401.5,4400.3,5.09582509]
[1756549540787,0.5112,4400.8,4400.7,3.2078]
[1756549541097,1.15671376,4400.8,4400.7,3.4388]
[1756549543192,1.15671376,4400.8,4400.7,0.231]
[1756549545797,1.15671376,4400.8,4399.7,3.2078]
[1756549545798,0.204,4400.3,4399.7,3.2078]
[1756549545996,0.5112,4399.9,4399.8,0.231]
[1756549546699,0.5112,4399.8,4399.7,3.2078]
[1756549546901,1.15722918,4399.8,4399.7,3.4388]
[1756549547594,1.15722918,4399.8,4399.7,3.2078]
[1756549547801,1.15722918,4399.8,4399.7,3.4388]
[1756549548003,1.15722918,4399.8,4399.7,3.2078]
[1756549548194,1.15722918,4399.8,4399.7,3.4388]
[1756549550702,1.15722918,4399.8,4399.7,3.2078]
[1756549555403,1.15722918,4399.8,4399.5,0.231]
[1756549555597,0.3072,4399.6,4399.5,0.231]
[1756549555798,0.3072,4399.4,4399.2,3.2078]
[1756549556003,0.5112,4399.4,4399.3,0.231]
[1756549557806,0.5112,4399.4,4399.2,3.2078]
[1756549558008,0.204,4399.4,4399.3,0.231]
[1756549558609,0.5112,4399.4,4399.3,0.231]
[1756549559007,0.204,4399.4,4399.3,0.231]
[1756549559207,0.5112,4399.4,4399.3,0.231]
[1756549562505,1.15656184,4399.4,4399.3,0.231]
[1756549564011,1.15656184,4399.4,4399.2,3.2078]
[1756549564214,1.15651939,4399.3,4399.2,3.2078]
[1756549564509,1.15651939,4399.3,4399.2,3.4388]
[1756549565504,1.15651939,4399.3,4399.2,0.231]
[1756549567909,1.15651939,4399.3,4399.2,3.4388]
[1756549569516,0.95251939,4399.3,4399.2,3.4388]
[1756549570514,1.15201939,4399.3,4399.2,3.2078]
[1756549570716,1.15201939,4399.3,4399.2,3.4378]
[1756549571212,0.64531939,4399.3,4399.2,3.4378]
[1756549572010,0.94261939,4399.3,4399.2,3.4378]
[1756549572412,1.14211939,4399.3,4399.2,3.4378]